bitfinex-derivatives/quotes_ETHF0:USTF0_20251028
["timestamp","ask_amount","ask_price","bid_price","bid_amount"]
[1761658280953,0.7103,4144.9,4144.8,1.2358]
[1761658281251,1.4459,4144.4,4144.3,0.7349]
[1761658281457,0.7103,4144.3,4144.0,0.7349]
[1761658281649,1.2041,4144.0,4143.9,1.23823419]
[1761658281855,1.9873,4144.0,4143.9,0.00243419]
[1761658282050,0.7103,4143.1,4142.5,0.7349]
[1761658282247,0.7103,4142.7,4142.5,0.7349]
[1761658282449,0.4938,4142.1,4141.4,0.7349]
[1761658282757,1.4459,4142.1,4141.4,0.7349]
[1761658282956,1.44788948,4142.1,4141.4,0.73678098]
[1761658283354,1.2041,4141.5,4141.4,0.00188098]
[1761658283553,1.4459,4141.5,4141.4,0.00188098]
[1761658283755,1.9425,4141.5,4141.4,0.00188098]
[1761658284858,0.2418,4141.5,4141.4,1.23768098]
[1761658285252,3.2078,4141.8,4141.7,1.2358]
[1761658285453,3.2078,4141.8,4141.7,1.7341]
[1761658285850,0.00198948,4142.1,4141.6,0.2958]
[1761658285851,0.00198948,4142.1,4142.0,0.9992]
[1761658286051,0.00198948,4142.1,4142.0,1.7341]
[1761658286248,0.73758948,4142.1,4142.0,1.2358]
[1761658286452,0.24378948,4142.1,4142.0,1.2358]
[1761658286652,1.44788948,4142.1,4141.5,0.7349]
[1761658286854,0.7103,4141.9,4141.5,0.7349]
[1761658287055,0.4938,4141.5,4141.4,0.50278098]
[1761658287254,1.2041,4141.5,4141.4,0.00188098]
[1761658287455,1.9425,4141.5,4141.4,0.00188098]
[1761658287656,0.2418,4141.5,4141.4,1.23768098]
[1761658287858,1.9425,4141.5,4141.4,0.00188098]
[1761658288459,2.0153,4141.5,4141.4,0.00188098]
[1761658288656,1.9425,4141.5,4141.4,0.00188098]
[1761658288966,1.9425,4141.5,4141.4,1.23768098]
[1761658288967,41.5356,4141.5,4141.4,1.23768098]
[1761658289266,0.00198948,4142.1,4142.0,1.7341]
[1761658289852,0.00198948,4142.1,4141.4,0.00188098]
[1761658289853,0.7103,4142.0,4141.5,0.7349]
[1761658290066,1.4459,4141.6,4141.4,0.00188098]
[1761658290361,0.7103,4142.0,4141.5,1.7341]
[1761658290663,0.7103,4141.7,4141.5,0.9992]
[1761658290854,0.2418,4141.9,4141.8,0.5009]
[1761658291056,0.71228948,4142.1,4141.9,0.7349]
[1761658291355,0.00198948,4142.1,4142.0,1.7341]
[1761658291760,0.00198948,4142.1,4142.0,0.9992]
[1761658292061,0.00198948,4142.1,4141.4,0.00188098]
[1761658292062,0.7103,4142.0,4141.4,0.73678098]
[1761658292263,0.7103,4141.7,4141.4,0.73678098]
[1761658292460,0.7103,4141.7,4141.6,0.5009]
[1761658292662,1.2041,4141.5,4141.4,0.00188098]
[1761658292856,1.9425,4141.5,4141.4,0.00188098]
[1761658293053,0.71228948,4142.1,4141.5,0.7349]
[1761658293257,0.9521,4141.8,4141.7,0.9992]
[1761658293858,0.7103,4141.7,4141.4,0.00188098]
[1761658294063,1.2041,4141.5,4141.4,0.00188098]
[1761658294259,1.2041,4141.5,4141.4,0.50278098]
[1761658294658,2.0101,4141.5,4141.4,0.00188098]
[1761658294969,5.2179,4141.5,4141.4,0.00188098]
[1761658295364,45.9451,4141.5,4141.4,0.00188098]
[1761658296163,46.0179,4141.5,4141.4,0.00188098]
[1761658297267,0.6894,4140.3,4139.9,0.735]
[1761658297570,0.2879,4140.8,4139.9,0.735]
[1761658297571,0.6894,4140.1,4139.9,0.735]
[1761658297763,0.6894,4140.1,4140.0,0.4746]
[1761658297958,0.6894,4140.7,4140.0,0.9635]
[1761658298166,0.2418,4140.5,4140.4,1.2096]
[1761658298474,1.1427,4140.1,4140.0,0.00188449]
[1761658299267,1.8759,4140.1,4140.0,0.00188449]
[1761658299464,40.8,4140.2,4140.1,1.2096]
[1761658299872,0.4533,4140.1,4140.0,0.00188449]
[1761658300068,1.8759,4140.1,4140.0,0.00188449]
[1761658300371,1.6341,4140.1,4140.0,0.00188449]
[1761658300673,42.4341,4140.1,4140.0,0.00188449]
[1761658301375,42.6759,4140.1,4140.0,0.00188449]
[1761658304977,0.6894,4139.7,4139.1,0.735]
[1761658305176,41.0418,4140.1,4139.9,0.4746]
[1761658305177,0.6894,4140.0,4139.9,0.4746]
[1761658305477,0.85375769,4141.5,4139.1,0.2949]
[1761658305478,3.8972,4141.2,4140.7,0.4746]
[1761658305774,3.8972,4141.2,4140.5,0.4889]
[1761658305775,3.2078,4141.7,4141.1,0.4746]
[1761658305970,0.9312,4141.4,4141.2,0.735]
[1761658306169,0.2418,4141.4,4141.2,0.735]
[1761658306475,0.6894,4141.2,4140.7,0.0024158]
[1761658306670,0.6894,4141.0,4140.7,0.7374158]
[1761658306866,0.2418,4141.1,4140.9,1.6985]
[1761658307169,1.1427,4141.1,4141.0,0.4746]
[1761658307874,1.6341,4140.8,4140.7,0.0024158]
[1761658308075,1.8759,4140.8,4140.7,0.0024158]
[1761658308378,1.9487,4140.8,4140.7,0.0024158]
[1761658308573,42.7487,4140.8,4140.7,0.0024158]
[1761658309271,42.7487,4140.8,4139.6,0.735]
[1761658309272,0.6894,4140.7,4139.6,0.735]
[1761658309472,0.6894,4139.9,4139.2,0.735]
[1761658310072,3.2078,4140.1,4139.2,0.735]
[1761658310073,0.6894,4139.7,4139.2,0.735]
[1761658310373,1.6341,4139.3,4139.2,0.00284423]
[1761658310576,1.8759,4139.3,4139.2,0.00284423]
[1761658311778,42.6759,4139.3,4139.2,0.00284423]
[1761658315580,41.4951,4139.3,4139.2,1.70134423]
[1761658315782,42.1845,4139.3,4139.2,0.00284423]
[1761658317083,3.2078,4139.6,4139.5,1.6985]
[1761658317276,3.2078,4140.1,4140.0,1.6985]
[1761658317477,0.85375769,4140.7,4140.0,1.6985]
[1761658317478,0.6894,4140.9,4140.8,0.4746]
[1761658317678,3.4957,4141.2,4140.9,0.735]
[1761658317679,3.8972,4141.2,4140.9,0.735]
[1761658317883,0.9312,4141.1,4141.0,0.4746]
[1761658318081,0.6894,4141.0,4140.5,0.735]
[1761658318383,3.2078,4141.2,4141.1,1.6985]
[1761658318683,3.8972,4141.2,4141.1,1.6985]
[1761658318986,44.6972,4141.2,4141.1,0.9635]
[1761658319177,44.6972,4141.2,4141.1,0.4746]
[1761658319378,0.6894,4141.1,4140.7,0.735]
[1761658320283,1.1427,4140.8,4140.7,1.2096]
[1761658320475,0.6894,4140.2,4139.7,0.64307331]
[1761658320672,0.6894,4140.2,4139.8,0.735]
[1761658320875,0.6894,4140.2,4139.4,3.2078]
[1761658320876,0.4533,4139.5,4139.2,0.00284423]
[1761658321076,0.6894,4139.4,4139.2,0.73784423]
[1761658321281,0.2418,4139.7,4139.3,0.4746]
[1761658321282,0.6894,4139.6,4139.3,0.4746]
[1761658321479,0.6894,4139.6,4139.4,0.735]
[1761658321678,1.8759,4139.3,4139.2,0.00284423]
[1761658322178,40.8,4139.9,4139.4,1.6985]
[1761658322377,40.8,4139.9,4139.8,1.2096]
[1761658322780,0.6894,4139.8,4139.2,0.73784423]
[1761658322980,0.6894,4139.6,4139.2,0.73784423]
[1761658323377,0.2418,4139.7,4139.2,0.00284423]
[1761658323378,1.6341,4139.3,4139.2,0.00284423]
[1761658323779,0.4533,4139.3,4139.2,1.21244423]
[1761658324286,1.1427,4139.3,4139.2,0.47744423]
[1761658324479,1.6341,4139.3,4139.2,0.00284423]
[1761658325379,0.6951,4140.2,4139.8,0.4477]
[1761658325575,3.2078,4140.3,4139.2,0.43774423]
[1761658325576,3.2078,4140.3,4140.2,1.6599]
[1761658325981,44.7029,4140.3,4139.7,0.7189]
[1761658326289,0.6951,4140.2,4139.7,0.7189]
[1761658326490,0.6951,4139.7,4139.4,0.7189]
[1761658326683,44.0078,4140.3,4139.2,0.00284423]
[1761658326684,1.1188,4139.3,4139.2,0.00284423]
[1761658327182,1.1188,4139.3,4139.2,0.45054423]
[1761658327382,3.4708,4139.8,4139.2,1.16944423]
[1761658327586,0.6951,4139.4,4139.2,1.16944423]
[1761658327789,1.1188,4139.3,4139.2,0.45054423]
[1761658328180,1.7677,4139.3,4139.2,0.00284423]
[1761658328386,1.5259,4139.3,4139.2,0.00284423]
[1761658328585,3.2078,4139.8,4139.3,0.6409]
[1761658328887,0.6069,4139.6,4139.3,0.6409]
[1761658329085,3.2078,4139.8,4139.2,0.00284423]
[1761658329086,3.4496,4139.8,4139.2,0.00284423]
[1761658329386,0.6069,4139.4,4139.2,0.64374423]
[1761658329587,44.0078,4140.3,4139.7,0.4411]
[1761658329778,0.6069,4140.2,4139.9,0.6409]
[1761658329978,0.6069,4140.2,4139.2,0.64591754]
[1761658329979,0.6069,4139.9,4139.3,0.6409]
[1761658330183,0.6069,4139.9,4139.2,0.64591754]
[1761658330184,0.426,4139.4,4139.2,0.00284423]
[1761658330378,0.6069,4139.7,4139.3,0.4411]
[1761658330587,0.2418,4139.8,4139.7,1.082]
[1761658330793,0.8487,4139.8,4139.7,1.082]
[1761658330992,1.2747,4139.8,4139.7,0.4411]
[1761658331890,44.6147,4140.3,4140.2,0.4411]
[1761658332086,0.6069,4140.8,4140.3,0.6409]
[1761658332285,3.2078,4140.9,4140.8,0.4411]
[1761658332480,41.4797,4141.0,4140.9,0.4411]
[1761658332681,41.4797,4141.0,4140.4,0.6409]
[1761658332887,0.6069,4140.8,4140.4,0.6409]
[1761658333590,40.8728,4141.0,4140.9,0.4411]
[1761658333791,41.4797,4141.0,4140.9,0.4411]
[1761658334194,41.7215,4141.0,4140.9,0.4411]
[1761658334389,0.426,4140.1,4140.0,3.85314572]
[1761658334685,0.6069,4139.7,4139.5,0.6409]
[1761658334995,0.6069,4140.7,4139.9,0.6409]
[1761658335197,0.2418,4140.2,4140.1,0.4411]
[1761658335492,1.2747,4140.2,4140.1,0.4411]
[1761658335698,1.0329,4140.2,4140.1,0.4411]
[1761658337500,1.0329,4140.2,4139.6,0.6409]
[1761658337501,0.6069,4140.5,4140.2,0.6409]
[1761658337796,1.2747,4140.3,4140.2,0.4411]
[1761658338195,1.0329,4140.3,4140.2,0.4411]
[1761658338497,0.6069,4140.9,4140.8,0.4411]
[1761658338798,0.6069,4140.6,4140.1,0.6409]
[1761658339292,0.6069,4140.4,4140.1,0.6409]
[1761658339884,0.6069,4140.4,4139.9,3.2078]
[1761658340091,1.0329,4140.0,4139.9,3.2078]
[1761658340288,0.6069,4139.9,4139.6,0.6409]
[1761658341386,0.6069,4140.4,4139.8,0.4411]
[1761658341585,41.72655769,4141.0,4140.9,1.5199]
[1761658341586,0.0728,4141.0,4140.9,1.5199]
[1761658342193,0.0728,4141.0,4140.9,1.5927]
[1761658342395,0.0728,4141.0,4140.9,1.5199]
[1761658343298,40.8,4142.2,4142.0,1.5199]
[1761658343495,40.8,4142.2,4142.0,1.5927]
[1761658343701,1.68378948,4142.1,4142.0,0.0728]
[1761658344096,0.6069,4142.0,4141.0,0.6409]
[1761658344397,0.8487,4141.4,4141.0,0.6409]
[1761658344895,3.2078,4141.8,4141.3,0.9518]
[1761658345199,3.4496,4141.8,4141.7,1.082]
[1761658345496,0.00198948,4142.1,4142.0,1.5199]
[1761658345696,0.00198948,4142.1,4142.0,1.5927]
[1761658346000,0.00198948,4142.1,4142.0,1.6655]
[1761658346194,3.2078,4143.1,4142.2,0.6409]
[1761658346386,3.2078,4143.1,4142.7,1.5199]
[1761658346387,0.2418,4142.8,4142.7,1.5199]
[1761658346585,0.2418,4142.6,4142.3,0.6409]
[1761658346787,0.2418,4142.3,4141.9,3.2078]
[1761658346993,0.2418,4142.3,4142.2,1.5199]
[1761658347193,0.6069,4142.7,4142.3,0.6409]
[1761658347398,1.03483215,4142.7,4142.6,0.07081052]
[1761658347601,0.00193215,4142.7,4142.6,1.59071052]
[1761658348398,0.60883215,4142.7,4142.6,0.94981052]
[1761658348598,0.60883215,4142.7,4142.6,1.15281052]
[1761658348802,0.00193215,4142.7,4142.6,1.59071052]
[1761658349704,0.60883215,4142.7,4142.6,1.59071052]
[1761658349909,0.60883215,4142.7,4142.6,0.94981052]
[1761658350204,0.00193215,4142.7,4142.6,1.59071052]
[1761658350501,1.03483215,4142.7,4142.6,0.94981052]
[1761658350804,0.00193215,4142.7,4142.6,1.59071052]
[1761658351296,1.03483215,4142.7,4142.6,0.94981052]
[1761658351502,1.03483215,4142.7,4142.6,0.879]
[1761658351901,1.03483215,4142.7,4142.6,0.4411]
[1761658352208,1.0329,4142.3,4142.2,0.00269532]
[1761658352398,1.0329,4142.3,4142.2,0.44379532]
[1761658352597,0.6069,4142.6,4142.3,0.6409]
[1761658352903,1.2747,4142.4,4142.3,0.4411]
[1761658353095,0.2418,4142.4,4142.3,0.4411]
[1761658353295,0.60883215,4142.7,4142.4,0.6409]
[1761658353502,0.6069,4142.4,4142.2,0.64359532]
[1761658353699,1.2747,4142.4,4142.3,0.4411]
[1761658353900,1.44,4142.4,4142.3,0.4411]
[1761658354100,1.44,4142.3,4142.2,0.00269532]
[1761658354295,1.6818,4142.3,4142.2,0.00269532]
[1761658354496,0.62563215,4142.7,4142.3,0.6515]
[1761658354696,0.6237,4142.3,4142.2,4.26659532]
[1761658354903,41.4237,4142.6,4142.5,0.4046]
[1761658355099,0.00193215,4142.7,4142.6,1.0405]
[1761658355299,0.00193215,4142.7,4142.6,1.692]
[1761658355901,0.39053215,4142.7,4142.6,0.8175]
[1761658356105,0.00193215,4142.7,4142.6,1.469]
[1761658357111,1.44543215,4142.7,4142.2,3.21049532]
[1761658357310,0.2418,4142.4,4142.3,1.469]
[1761658357497,1.2541,4142.4,4142.3,0.4046]
[1761658357704,1.0123,4142.3,4142.2,3.21049532]
[1761658358008,0.6304,4142.3,4142.2,4.26659532]
[1761658358507,0.6304,4142.3,4142.2,4.33740584]
[1761658359110,1.6853,4142.3,4142.2,0.07350584]
[1761658359512,1.6853,4142.3,4140.7,3.2078]
[1761658359513,0.6237,4141.2,4140.7,3.2078]
[1761658359808,1.0123,4140.8,4140.7,3.2078]
[1761658360105,1.0123,4141.2,4141.1,0.47541052]
[1761658360508,1.0123,4141.2,4141.1,0.47847781]
[1761658360895,1.6856,4141.2,4141.1,0.07387781]
[1761658361096,1.6856,4141.2,4141.1,0.00306729]
[1761658361804,1.0123,4141.2,4141.1,0.47847781]
[1761658362007,40.8,4141.4,4141.1,1.54287781]
[1761658362304,1.0123,4141.4,4141.3,0.07081052]
[1761658362607,1.0123,4141.4,4141.1,0.00306729]
[1761658362608,1.6853,4141.2,4141.1,0.00306729]
[1761658363005,0.6237,4141.5,4141.2,0.6515]
[1761658363306,40.8,4141.8,4141.7,1.469]
[1761658363502,3.2078,4142.1,4142.0,1.0561]
[1761658363698,0.6237,4142.5,4142.1,0.6515]
[1761658363902,0.2418,4142.2,4142.1,1.469]
[1761658364303,0.6237,4142.5,4142.2,0.6515]
[1761658364607,3.83343215,4142.7,4142.4,1.12691052]
[1761658364812,3.20973215,4142.7,4142.6,1.12691052]
[1761658365305,0.62563215,4142.7,4142.6,0.47541052]
[1761658365510,0.00193215,4142.7,4142.6,1.12691052]
[1761658365709,0.00193215,4142.7,4142.6,1.53981052]
[1761658366215,0.00193215,4142.7,4142.6,1.61261052]
[1761658366409,0.2418,4143.1,4143.0,1.469]
[1761658366603,1.2541,4143.1,4143.0,1.0561]
[1761658366910,0.2418,4143.1,4143.0,1.469]
[1761658367411,0.00203996,4143.1,4143.0,1.469]
[1761658368323,0.6237,4144.6,4144.2,1.0561]
[1761658368825,0.2418,4144.3,4144.2,1.0561]
[1761658369016,0.2418,4144.3,4144.2,1.469]
[1761658369218,0.00246746,4144.3,4144.2,0.89178073]
[1761658369621,0.6237,4145.6,4144.3,0.6515]
[1761658369811,0.2418,4144.9,4144.8,1.469]
[1761658370010,3.2078,4145.9,4144.8,1.469]
[1761658370011,3.2078,4145.9,4145.5,0.4046]
[1761658370216,0.85375769,4147.1,4147.0,0.4046]
[1761658370418,0.85375769,4147.1,4146.5,0.4129]
[1761658370419,0.6237,4147.3,4147.1,0.6515]
[1761658370614,0.6237,4147.3,4146.5,3.2078]
[1761658370615,0.3886,4146.8,4146.5,3.2078]
[1761658370820,0.2418,4146.6,4146.5,3.2078]
[1761658371023,0.2418,4146.6,4146.5,4.6768]
[1761658371323,0.6237,4147.2,4146.6,0.6515]
[1761658371818,0.2418,4146.7,4146.6,1.469]
[1761658372020,0.8198,4146.6,4146.1,0.6515]
[1761658372217,0.2418,4146.2,4146.1,0.6515]
[1761658372417,0.2418,4146.2,4146.1,1.469]
[1761658372723,0.6237,4146.5,4146.1,1.469]
[1761658372925,1.2541,4146.2,4145.9,3.2078]
[1761658373116,0.6237,4147.1,4146.2,0.6515]
[1761658373317,0.00231116,4147.3,4147.1,0.6515]
[1761658373626,0.00231116,4147.3,4147.2,1.469]
[1761658373924,0.00231116,4147.3,4147.2,1.47183144]
[1761658374124,0.24411116,4147.3,4147.2,1.47183144]
[1761658376224,0.24411116,4147.3,4147.2,0.82033144]
[1761658376924,1.25641116,4147.3,4147.2,0.00283144]
[1761658377120,0.24411116,4147.3,4147.2,1.47183144]
[1761658377625,0.6237,4149.2,4148.7,1.0561]
[1761658377823,0.6237,4149.2,4147.2,0.22583144]
[1761658377824,0.6237,4149.2,4148.9,0.6515]
[1761658378018,0.2421,4150.4,4148.8,3.2078]
[1761658378019,0.6237,4150.2,4149.7,0.4046]
[1761658378324,0.6237,4151.4,4150.6,0.4046]
[1761658378632,0.00181478,4151.2,4150.8,0.6515]
[1761658378823,0.6237,4152.1,4150.9,0.6515]
[1761658379030,0.6237,4152.1,4150.8,0.223]
[1761658379031,0.6237,4152.1,4151.2,3.8593]
[1761658379233,0.6237,4152.6,4151.7,3.8593]
[1761658379829,0.2418,4151.8,4151.7,3.8593]
[1761658380231,0.00292733,4152.6,4151.8,0.6515]
[1761658380422,0.2418,4152.2,4152.1,3.8593]
[1761658380627,0.00292733,4152.6,4152.2,0.6515]
[1761658380933,0.00292733,4152.6,4152.2,0.7235]
[1761658381128,0.00292733,4152.6,4152.4,0.6515]
[1761658381129,0.2418,4152.5,4152.4,0.6515]
[1761658381325,0.00292733,4152.6,4152.4,0.6515]
[1761658381634,0.00292733,4152.6,4152.1,3.2078]
[1761658381635,3.8315,4154.3,4152.7,0.6515]
[1761658381818,3.8315,4154.3,4152.6,0.223]
[1761658381819,3.2078,4154.3,4153.3,3.2078]
[1761658382019,0.6237,4153.3,4152.3,3.8593]
[1761658382228,0.6237,4153.3,4152.4,0.6515]
[1761658382419,0.6237,4152.3,4151.8,3.2078]
[1761658382724,0.2418,4152.4,4151.8,3.2078]
[1761658382725,0.2418,4152.2,4151.9,0.6515]
[1761658382926,0.2418,4151.9,4151.8,3.2078]
[1761658383129,0.6237,4151.8,4151.0,3.2078]
[1761658383323,0.6237,4151.1,4151.0,3.2078]
[1761658383530,0.6237,4151.1,4150.6,0.00227462]
[1761658383531,0.6237,4151.0,4150.6,0.00227462]
[1761658383833,0.8655,4150.7,4150.6,0.00227462]
[1761658384231,0.6237,4150.7,4150.6,0.00227462]
[1761658384536,0.6237,4150.7,4149.5,0.6515]
[1761658384931,3.4499,4150.8,4149.4,3.2078]
[1761658384932,0.842,4149.8,4149.4,3.2078]
[1761658385238,0.2418,4150.2,4149.5,0.5985]
[1761658385434,0.6002,4150.1,4149.9,3.2078]
[1761658385626,0.6002,4150.1,4149.5,0.00281022]
[1761658385937,0.6002,4149.6,4149.5,0.00281022]
[1761658386137,0.842,4149.6,4149.5,0.00281022]
[1761658386324,0.2418,4149.6,4149.5,0.60131022]
[1761658386524,0.842,4149.6,4149.5,0.00281022]
[1761658387336,0.6002,4149.6,4149.5,0.00281022]
[1761658387628,3.7518,4150.0,4149.5,0.54661022]
[1761658387830,3.2078,4150.0,4149.5,0.54661022]
[1761658388036,0.2418,4149.8,4149.5,0.54661022]
[1761658388932,0.2418,4149.6,4149.5,0.00281022]
[1761658389132,3.2078,4150.0,4149.5,0.54661022]
[1761658389327,0.00297745,4150.2,4149.5,0.54661022]
[1761658389541,0.00297745,4150.2,4150.0,0.5438]
[1761658390132,0.00297745,4150.2,4150.1,0.072]
[1761658390334,0.00297745,4150.2,4150.1,0.6158]
[1761658391134,0.00297745,4150.2,4150.1,0.5438]
[1761658391438,0.54697745,4150.2,4149.9,3.2078]
[1761658391737,0.544,4149.9,4149.5,0.00281022]
[1761658391929,0.2418,4149.6,4149.5,0.00281022]
[1761658392435,0.00297745,4150.2,4149.5,0.54661022]
[1761658392741,0.2418,4149.6,4149.5,0.54661022]
[1761658393134,0.54697745,4150.2,4149.5,0.54661022]
[1761658393336,0.2418,4149.6,4149.5,0.54661022]
[1761658393637,0.2418,4149.6,4149.5,0.00281022]
[1761658393835,0.7858,4149.6,4149.5,0.00281022]
[1761658395534,0.544,4149.5,4148.8,3.2078]
[1761658395735,0.2177,4149.9,4148.9,0.5438]
[1761658395736,3.2078,4149.3,4148.9,0.5438]
[1761658395936,0.2418,4149.0,4148.8,3.2078]
[1761658396136,0.2418,4149.0,4148.8,3.7516]
[1761658396339,0.544,4149.2,4148.8,3.7516]
[1761658396538,3.2078,4149.3,4148.9,0.8873]
[1761658396739,3.2078,4149.3,4149.2,1.2458]
[1761658397041,3.2078,4149.3,4149.2,0.3435]
[1761658397244,3.4496,4149.3,4149.2,0.3435]
[1761658397634,0.3477,4148.9,4148.8,3.21066943]
[1761658397837,1.2384,4148.9,4148.8,0.00286943]
[1761658398033,3.7518,4149.3,4148.8,0.34636943]
[1761658398240,0.2418,4148.9,4148.8,0.89016943]
[1761658398541,3.7518,4149.3,4149.2,0.8873]
[1761658398542,3.2078,4149.3,4149.2,0.8873]
[1761658398841,0.7617,4149.9,4149.2,4.0951]
[1761658399033,0.43384,4149.4,4149.3,1.2458]
[1761658399441,0.43381,4149.7,4149.4,0.5438]
[1761658399636,0.43381,4149.7,4149.6,1.2458]
[1761658401536,0.76864,4149.3,4149.2,3.2078]
[1761658401735,1.60859,4148.9,4148.8,0.00286943]
[1761658402135,3.2078,4149.7,4148.8,0.00286943]
[1761658402136,0.516,4149.5,4148.8,0.32876943]
[1761658402344,0.4338,4149.7,4149.6,1.1613]
[1761658403343,0.43384,4149.3,4149.2,3.5337]
[1761658403946,0.43384,4149.3,4149.2,4.0348]
[1761658404142,0.43384,4149.3,4149.2,4.3691]
[1761658404347,0.43389,4148.9,4148.8,0.00286943]
[1761658404547,0.43389,4148.9,4148.8,1.16416943]
[1761658405849,3.2078,4149.7,4149.4,0.5011]
[1761658406146,3.4496,4149.7,4149.4,0.5011]
[1761658406345,0.516,4149.6,4149.4,0.5011]
[1761658406747,3.4496,4149.7,4148.8,0.20416943]
[1761658406748,3.2078,4149.7,4149.6,1.1613]
[1761658407447,0.516,4149.6,4148.9,0.5011]
[1761658407642,0.7578,4149.4,4149.0,0.43387]
[1761658407842,0.2418,4149.4,4149.3,0.3259]
[1761658408040,3.2078,4149.7,4149.3,1.1613]
[1761658408247,0.516,4149.5,4148.9,0.5011]
[1761658408445,0.516,4149.3,4148.9,0.5011]
[1761658408847,0.516,4149.3,4148.8,0.00286943]
[1761658409153,1.1747,4148.9,4148.8,0.00286943]
[1761658409352,1.4165,4148.9,4148.8,0.00286943]
[1761658409550,1.1747,4148.9,4148.8,0.00286943]
[1761658409854,1.1747,4148.9,4148.8,0.32876943]
[1761658410045,0.3348,4148.9,4148.8,0.00286943]
[1761658410249,1.1747,4148.9,4148.8,0.00286943]
[1761658410850,0.8508,4148.9,4148.8,0.00286943]
[1761658411046,1.1747,4148.9,4148.8,0.00286943]
[1761658411858,1.1747,4148.9,4148.0,3.2078]
[1761658411859,1.1747,4148.1,4148.0,3.2078]
[1761658412051,0.516,4147.3,4147.0,3.2078]
[1761658412247,0.1974,4148.0,4147.0,3.2078]
[1761658412248,1.1747,4147.1,4147.0,3.2078]
[1761658412447,0.2694,4148.0,4146.1,0.85514947]
[1761658412448,0.516,4146.7,4146.1,0.64029753]
[1761658412752,1.1747,4145.9,4145.8,3.2078]
[1761658413056,0.516,4145.8,4145.0,3.84809753]
[1761658413252,0.2418,4145.7,4145.1,0.5011]
[1761658413651,0.00190448,4145.9,4145.0,3.21037476]
[1761658413652,3.2078,4145.5,4145.0,3.21037476]
[1761658413852,0.516,4145.4,4145.0,3.21037476]
[1761658414255,0.8508,4145.1,4145.0,3.21037476]
[1761658414558,0.7587,4145.4,4145.1,0.508]
[1761658414857,1.1558,4145.1,4145.0,3.21037476]
[1761658415060,1.3976,4145.1,4145.0,0.00257476]
[1761658415562,1.4696,4145.1,4145.0,0.00257476]
[1761658415858,1.4696,4145.1,4143.8,3.2078]
[1761658415859,0.5169,4145.0,4143.8,3.2078]
[1761658416054,0.3138,4145.1,4143.9,0.508]
[1761658416055,0.7587,4144.3,4143.9,0.508]
[1761658416267,0.5169,4144.8,4144.2,0.3222]
[1761658416457,0.5169,4145.5,4144.4,0.508]
[1761658416648,0.1829,4145.6,4144.8,3.7158]
[1761658416649,0.5169,4145.2,4144.8,3.7158]
[1761658416852,0.5169,4145.2,4144.9,0.508]
[1761658417061,40.8,4145.5,4144.9,0.508]
[1761658417461,0.5169,4145.2,4144.4,0.51067601]
[1761658417661,0.8379,4144.5,4144.4,0.00267601]
[1761658417849,1.0797,4144.5,4144.4,0.00267601]
[1761658418054,0.072,4145.2,4144.4,0.00267601]
[1761658418055,0.5169,4145.2,4144.4,0.00267601]
[1761658418367,1.3976,4144.5,4144.4,0.00267601]
[1761658418562,1.1558,4143.9,4143.8,3.2078]
[1761658418864,0.2418,4143.9,4143.8,4.3707]
[1761658419161,0.5169,4144.5,4143.8,4.3707]
[1761658419362,0.2418,4143.9,4143.8,3.8627]
[1761658419556,0.5169,4144.6,4143.9,0.508]
[1761658419959,0.5169,4144.6,4143.9,0.4344]
[1761658420263,3.2078,4144.9,4144.2,0.43437]
[1761658420464,0.5169,4145.1,4144.4,3.2078]
[1761658420664,0.5169,4145.1,4144.4,3.7158]
[1761658420857,0.5169,4144.8,4144.5,0.508]
[1761658421264,0.6389,4144.5,4143.9,3.2078]
[1761658421561,1.1558,4144.0,4143.9,3.2078]
[1761658421859,1.3976,4144.0,4143.9,3.2078]
[1761658422761,0.321,4144.0,4143.9,3.2078]
[1761658422965,1.3976,4144.0,4143.9,3.2078]
[1761658423562,0.5169,4144.7,4143.9,3.53]
[1761658423756,0.5169,4144.1,4143.9,4.038]
[1761658423959,1.1558,4143.9,4143.8,0.00263535]
[1761658424160,1.3976,4143.9,4143.8,0.00263535]
[1761658424360,1.1558,4143.9,4143.8,0.00263535]
[1761658424669,0.5169,4144.2,4143.8,0.51063535]
[1761658424854,40.8,4144.3,4144.0,0.3222]
[1761658424855,0.7587,4144.1,4144.0,0.3222]
[1761658425059,0.7587,4144.1,4143.8,0.00263535]
[1761658425060,0.321,4143.9,4143.8,0.00263535]
[1761658425265,0.8379,4143.9,4143.8,0.00263535]
[1761658425462,40.8,4144.3,4143.8,0.00263535]
[1761658425669,0.2418,4144.0,4143.9,0.8302]
[1761658425966,0.2418,4144.1,4143.9,0.3222]
[1761658426263,3.2078,4145.0,4144.5,0.508]
[1761658426463,0.5169,4144.9,4144.0,3.898]
[1761658426664,0.2418,4144.7,4144.1,0.508]
[1761658426866,0.5169,4144.9,4144.1,0.508]
[1761658427061,0.5169,4144.9,4144.0,3.2078]
[1761658427366,3.2078,4145.0,4144.0,3.2078]
[1761658427367,0.2418,4144.2,4144.0,3.2078]
[1761658427664,0.5169,4144.7,4144.2,0.508]
[1761658427868,0.5169,4144.9,4144.6,0.8302]
[1761658428170,0.8379,4144.1,4144.0,3.2078]
[1761658428563,1.3976,4144.1,4144.0,3.2078]
[1761658428765,0.8379,4144.1,4144.0,3.2078]
[1761658428965,0.5169,4144.6,4144.0,3.53]
[1761658429268,0.2418,4144.3,4144.1,0.8302]
[1761658429469,0.321,4144.2,4144.0,3.2078]
[1761658429673,1.0797,4144.1,4144.0,3.2078]
[1761658430073,41.3169,4144.7,4144.0,4.3707]
[1761658430272,0.2418,4144.3,4144.2,1.1629]
[1761658430475,0.5169,4144.9,4144.6,0.3222]
[1761658430670,0.5169,4144.9,4144.0,3.2798]